[Event "Titled Tuesday Blitz November 14 Early 2023"]
[White "Sadhwani, Raunak"]
[Black "Kopylov, Alexander A."]
[WhiteFideId "35093487"]
[BlackFideId "4164857"]
[WhiteElo "3041"]
[BlackElo "2805"]
[Result "1-0"]
[Round "8"]
[TimeControl "180+1"]
[Date "2023.11.14"]
[WhiteClock "0:00:15"]
[BlackClock "0:00:57"]
[Board "19"]

1. e4 {[%clk 0:03:00]}  e5 {[%clk 0:03:00]} 2. d4 {[%clk 0:02:58]}  exd4 {[%clk 0:02:59]} 3. Qxd4 {[%clk 0:02:59]}  Nc6 {[%clk 0:02:59]} 4. Qc4 {[%clk 0:03:00]}  g6 {[%clk 0:02:59]} 5. Nc3 {[%clk 0:02:58]}  Bg7 {[%clk 0:02:59]} 6. h4 {[%clk 0:02:59]}  Nf6 {[%clk 0:02:57]} 7. Bf4 {[%clk 0:02:51]}  O-O {[%clk 0:02:57]} 8. O-O-O {[%clk 0:02:52]}  d6 {[%clk 0:02:57]} 9. f3 {[%clk 0:02:42]}  Be6 {[%clk 0:02:54]} 10. Qe2 {[%clk 0:02:43]}  Nh5 {[%clk 0:02:46]} 11. Bh2 {[%clk 0:02:43]}  Bxc3 {[%clk 0:02:46]} 12. bxc3 {[%clk 0:02:44]}  Qf6 {[%clk 0:02:46]} 13. Qd2 {[%clk 0:02:19]}  d5 {[%clk 0:02:19]} 14. g4 {[%clk 0:01:55]}  Ng7 {[%clk 0:02:16]} 15. exd5 {[%clk 0:01:55]}  Rad8 {[%clk 0:02:14]} 16. Bc4 {[%clk 0:01:47]}  Na5 {[%clk 0:02:10]} 17. Qd4 {[%clk 0:01:45]}  Qe7 {[%clk 0:02:00]} 18. Nh3 {[%clk 0:01:12]}  Qa3+ {[%clk 0:01:33]} 19. Kb1 {[%clk 0:01:12]}  b5 {[%clk 0:01:11]} 20. Bb3 {[%clk 0:00:58]}  Bxd5 {[%clk 0:01:08]} 21. Qb4 {[%clk 0:00:25]}  Qxb4 {[%clk 0:01:06]} 22. cxb4 {[%clk 0:00:25]}  Nxb3 {[%clk 0:01:07]} 23. axb3 {[%clk 0:00:26]}  Bxf3 {[%clk 0:01:07]} 24. Rxd8 {[%clk 0:00:27]}  Rxd8 {[%clk 0:01:08]} 25. Rg1 {[%clk 0:00:28]}  Rd2 {[%clk 0:01:08]} 26. Bf4 {[%clk 0:00:24]}  Rd4 {[%clk 0:01:07]} 27. Rg3 {[%clk 0:00:18]}  Be4 {[%clk 0:01:03]} 28. Bxc7 {[%clk 0:00:07]}  Rxb4 {[%clk 0:01:01]} 29. Be5 {[%clk 0:00:06]}  h5 {[%clk 0:00:51]} 30. Nf2 {[%clk 0:00:06]}  hxg4 {[%clk 0:00:48]} 31. Kb2 {[%clk 0:00:06]}  Nf5 {[%clk 0:00:47]} 32. Rxg4 {[%clk 0:00:06]}  Ne3 {[%clk 0:00:39]} 33. Rxe4 {[%clk 0:00:05]}  Rxe4 {[%clk 0:00:32]} 34. Nxe4 {[%clk 0:00:06]}  Nf5 {[%clk 0:00:30]} 35. h5 {[%clk 0:00:06]}  gxh5 {[%clk 0:00:30]} 36. Nf6+ {[%clk 0:00:06]}  Kf8 {[%clk 0:00:31]} 37. Nxh5 {[%clk 0:00:07]}  Ke7 {[%clk 0:00:32]} 38. Nf4 {[%clk 0:00:07]}  Kd7 {[%clk 0:00:32]} 39. Ka3 {[%clk 0:00:06]}  a5 {[%clk 0:00:31]} 40. b4 {[%clk 0:00:05]}  axb4+ {[%clk 0:00:31]} 41. Kxb4 {[%clk 0:00:05]}  Kc6 {[%clk 0:00:32]} 42. c3 {[%clk 0:00:04]}  Ne3 {[%clk 0:00:31]} 43. Kb3 {[%clk 0:00:04]}  Nf5 {[%clk 0:00:32]} 44. Bf6 {[%clk 0:00:03]}  Ne3 {[%clk 0:00:31]} 45. Bd4 {[%clk 0:00:03]}  Nf5 {[%clk 0:00:31]} 46. Ne2 {[%clk 0:00:02]}  Nd6 {[%clk 0:00:28]} 47. Bf2 {[%clk 0:00:03]}  f5 {[%clk 0:00:28]} 48. Nd4+ {[%clk 0:00:03]}  Kd5 {[%clk 0:00:28]} 49. Bg3 {[%clk 0:00:02]}  Ne4 {[%clk 0:00:29]} 50. Be1 {[%clk 0:00:03]}  f4 {[%clk 0:00:26]} 51. Kb4 {[%clk 0:00:03]}  f3 {[%clk 0:00:26]} 52. Nxf3 {[%clk 0:00:03]}  Nxc3 {[%clk 0:00:27]} 53. Bxc3 {[%clk 0:00:03]}  Ke4 {[%clk 0:00:27]} 54. Nd4 {[%clk 0:00:04]}  Kd5 {[%clk 0:00:27]} 55. Nb3 {[%clk 0:00:04]}  Ke4 {[%clk 0:00:28]} 56. Nc5+ {[%clk 0:00:05]}  Kd5 {[%clk 0:00:29]} 57. Be1 {[%clk 0:00:05]}  Kd4 {[%clk 0:00:29]} 58. Bh4 {[%clk 0:00:06]}  Kd5 {[%clk 0:00:30]} 59. Be7 {[%clk 0:00:06]}  Kd4 {[%clk 0:00:30]} 60. Bf6+ {[%clk 0:00:06]}  Kd5 {[%clk 0:00:31]} 61. Bc3 {[%clk 0:00:06]}  Kd6 {[%clk 0:00:31]} 62. Kxb5 {[%clk 0:00:06]}  Kd5 {[%clk 0:00:32]} 63. Kb4 {[%clk 0:00:07]}  Kd6 {[%clk 0:00:33]} 64. Kc4 {[%clk 0:00:08]}  Kc6 {[%clk 0:00:33]} 65. Ne4 {[%clk 0:00:09]}  Kb6 {[%clk 0:00:33]} 66. Bb4 {[%clk 0:00:09]}  Kc6 {[%clk 0:00:34]} 67. Bc5 {[%clk 0:00:09]}  Kc7 {[%clk 0:00:35]} 68. Kd5 {[%clk 0:00:09]}  Kd7 {[%clk 0:00:35]} 69. Nf6+ {[%clk 0:00:09]}  Kc7 {[%clk 0:00:36]} 70. Bd4 {[%clk 0:00:08]}  Kb7 {[%clk 0:00:36]} 71. Kc5 {[%clk 0:00:09]}  Kc7 {[%clk 0:00:37]} 72. Be5+ {[%clk 0:00:09]}  Kb7 {[%clk 0:00:38]} 73. Nd5 {[%clk 0:00:09]}  Kc8 {[%clk 0:00:39]} 74. Kd6 {[%clk 0:00:08]}  Kb7 {[%clk 0:00:39]} 75. Bc3 {[%clk 0:00:07]}  Kc8 {[%clk 0:00:39]} 76. Nc7 {[%clk 0:00:07]}  Kd8 {[%clk 0:00:40]} 77. Bb4 {[%clk 0:00:06]}  Kc8 {[%clk 0:00:41]} 78. Kc6 {[%clk 0:00:07]}  Kb8 {[%clk 0:00:41]} 79. Nb5 {[%clk 0:00:05]}  Ka8 {[%clk 0:00:42]} 80. Be7 {[%clk 0:00:05]}  Kb8 {[%clk 0:00:43]} 81. Bh4 {[%clk 0:00:06]}  Ka8 {[%clk 0:00:44]} 82. Kb6 {[%clk 0:00:05]}  Kb8 {[%clk 0:00:44]} 83. Kc6 {[%clk 0:00:04]}  Ka8 {[%clk 0:00:45]} 84. Bg5 {[%clk 0:00:05]}  Kb8 {[%clk 0:00:46]} 85. Nc7 {[%clk 0:00:05]}  Ka7 {[%clk 0:00:46]} 86. Be3+ {[%clk 0:00:05]}  Kb8 {[%clk 0:00:47]} 87. Bd4 {[%clk 0:00:06]}  Kc8 {[%clk 0:00:47]} 88. Ba7 {[%clk 0:00:06]}  Kd8 {[%clk 0:00:48]} 89. Nd5 {[%clk 0:00:07]}  Kc8 {[%clk 0:00:49]} 90. Ne7+ {[%clk 0:00:08]}  Kd8 {[%clk 0:00:49]} 91. Kd6 {[%clk 0:00:08]}  Ke8 {[%clk 0:00:50]} 92. Ke6 {[%clk 0:00:09]}  Kd8 {[%clk 0:00:50]} 93. Bb6+ {[%clk 0:00:09]}  Ke8 {[%clk 0:00:51]} 94. Bc7 {[%clk 0:00:09]}  Kf8 {[%clk 0:00:52]} 95. Nf5 {[%clk 0:00:10]}  Ke8 {[%clk 0:00:53]} 96. Ng7+ {[%clk 0:00:10]}  Kf8 {[%clk 0:00:54]} 97. Kf6 {[%clk 0:00:11]}  Kg8 {[%clk 0:00:53]} 98. Kg6 {[%clk 0:00:12]}  Kf8 {[%clk 0:00:54]} 99. Bd6+ {[%clk 0:00:12]}  Kg8 {[%clk 0:00:55]} 100. Nf5 {[%clk 0:00:12]}  Kh8 {[%clk 0:00:56]} 101. Bc5 {[%clk 0:00:13]}  Kg8 {[%clk 0:00:56]} 102. Nh6+ {[%clk 0:00:14]}  Kh8 {[%clk 0:00:57]} 103. Bd4# {[%clk 0:00:15]} 1-0


[Site "https://www.chess.com"]

[Event "Titled Tuesday Blitz November 14 Early 2023"]
[White "Matlakov, Maxim"]
[Black "Llorente Zaro, Alfonso"]
[WhiteFideId "4168003"]
[BlackFideId "2254131"]
[WhiteElo "2948"]
[BlackElo "2777"]
[Result "1-0"]
[Round "8"]
[TimeControl "180+1"]
[Date "2023.11.14"]
[WhiteClock "0:00:04"]
[BlackClock "0:00:00"]
[Board "22"]

1. d4 {[%clk 0:03:00]}  f5 {[%clk 0:02:45]} 2. Bf4 {[%clk 0:02:59]}  Nf6 {[%clk 0:02:45]} 3. e3 {[%clk 0:02:59]}  e6 {[%clk 0:02:42]} 4. Nf3 {[%clk 0:02:58]}  d5 {[%clk 0:02:42]} 5. Be2 {[%clk 0:02:52]}  Bd6 {[%clk 0:02:41]} 6. O-O {[%clk 0:02:52]}  O-O {[%clk 0:02:42]} 7. c4 {[%clk 0:02:52]}  c6 {[%clk 0:02:41]} 8. Nbd2 {[%clk 0:02:52]}  Bxf4 {[%clk 0:02:39]} 9. exf4 {[%clk 0:02:51]}  Bd7 {[%clk 0:02:39]} 10. Qb3 {[%clk 0:02:48]}  Qb6 {[%clk 0:02:35]} 11. Ne5 {[%clk 0:02:47]}  Be8 {[%clk 0:02:33]} 12. Ndf3 {[%clk 0:02:47]}  Nbd7 {[%clk 0:02:33]} 13. Ng5 {[%clk 0:02:46]}  Bf7 {[%clk 0:01:29]} 14. Ngxf7 {[%clk 0:02:39]}  Rxf7 {[%clk 0:01:29]} 15. Nxf7 {[%clk 0:02:39]}  Kxf7 {[%clk 0:01:30]} 16. Rfd1 {[%clk 0:02:38]}  Qxb3 {[%clk 0:01:27]} 17. axb3 {[%clk 0:02:39]}  a6 {[%clk 0:01:27]} 18. f3 {[%clk 0:02:34]}  g6 {[%clk 0:01:27]} 19. Kf2 {[%clk 0:02:34]}  Rd8 {[%clk 0:01:26]} 20. Ra4 {[%clk 0:02:32]}  Rc8 {[%clk 0:01:23]} 21. Ke3 {[%clk 0:02:31]}  Ke7 {[%clk 0:01:22]} 22. c5 {[%clk 0:02:24]}  Kd8 {[%clk 0:01:22]} 23. g4 {[%clk 0:02:21]}  Kc7 {[%clk 0:01:20]} 24. Rg1 {[%clk 0:02:20]}  Re8 {[%clk 0:01:18]} 25. b4 {[%clk 0:02:17]}  Nf8 {[%clk 0:01:16]} 26. h3 {[%clk 0:02:11]}  Re7 {[%clk 0:01:16]} 27. Bxa6 {[%clk 0:02:06]}  bxa6 {[%clk 0:00:55]} 28. Rxa6 {[%clk 0:02:07]}  N8d7 {[%clk 0:00:49]} 29. Rga1 {[%clk 0:02:06]}  Nb8 {[%clk 0:00:47]} 30. Ra8 {[%clk 0:01:59]}  Kc8 {[%clk 0:00:43]} 31. R1a6 {[%clk 0:01:47]}  Rc7 {[%clk 0:00:43]} 32. Kd3 {[%clk 0:01:38]}  Nd7 {[%clk 0:00:40]} 33. Ra1 {[%clk 0:01:38]}  Rb7 {[%clk 0:00:33]} 34. Kc3 {[%clk 0:01:38]}  Nf8 {[%clk 0:00:33]} 35. R1a5 {[%clk 0:01:12]}  Kc7 {[%clk 0:00:32]} 36. Kb3 {[%clk 0:01:11]}  Nfd7 {[%clk 0:00:31]} 37. Ka4 {[%clk 0:01:10]}  fxg4 {[%clk 0:00:20]} 38. fxg4 {[%clk 0:01:11]}  Nf6 {[%clk 0:00:17]} 39. b5 {[%clk 0:01:07]}  cxb5+ {[%clk 0:00:17]} 40. Rxb5 {[%clk 0:01:08]}  Rxb5 {[%clk 0:00:18]} 41. Kxb5 {[%clk 0:01:08]}  Nc6 {[%clk 0:00:19]} 42. Ra4 {[%clk 0:01:01]}  Ne4 {[%clk 0:00:17]} 43. Ka6 {[%clk 0:00:57]}  h6 {[%clk 0:00:14]} 44. h4 {[%clk 0:00:45]}  h5 {[%clk 0:00:15]} 45. g5 {[%clk 0:00:40]}  Nd2 {[%clk 0:00:14]} 46. b4 {[%clk 0:00:38]}  Nf3 {[%clk 0:00:12]} 47. b5 {[%clk 0:00:37]}  Ncxd4 {[%clk 0:00:11]} 48. Rb4 {[%clk 0:00:30]}  Nc6 {[%clk 0:00:07]} 49. Rb1 {[%clk 0:00:07]}  Nfd4 {[%clk 0:00:07]} 50. bxc6 {[%clk 0:00:03]}  Kxc6 {[%clk 0:00:08]} 51. Rb8 {[%clk 0:00:02]}  Nf5 {[%clk 0:00:07]} 52. Re8 {[%clk 0:00:02]}  Kxc5 {[%clk 0:00:06]} 53. Rxe6 {[%clk 0:00:02]}  Nxh4 {[%clk 0:00:07]} 54. f5 {[%clk 0:00:02]}  Nxf5 {[%clk 0:00:06]} 55. Rxg6 {[%clk 0:00:03]}  Kd4 {[%clk 0:00:07]} 56. Rf6 {[%clk 0:00:02]}  Ke5 {[%clk 0:00:07]} 57. Rf7 {[%clk 0:00:02]}  Ke6 {[%clk 0:00:06]} 58. Rf6+ {[%clk 0:00:02]}  Ke5 {[%clk 0:00:05]} 59. Rf7 {[%clk 0:00:03]}  Ke6 {[%clk 0:00:06]} 60. g6 {[%clk 0:00:03]}  Nh6 {[%clk 0:00:06]} 61. Rf8 {[%clk 0:00:04]}  d4 {[%clk 0:00:03]} 62. g7 {[%clk 0:00:04]}  d3 {[%clk 0:00:02]} 63. Rh8 {[%clk 0:00:04]}  Kf7 {[%clk 0:00:01]} 64. Rxh6 {[%clk 0:00:04]}  Kxg7 {[%clk 0:00:00]} 65. Rd6 {[%clk 0:00:04]} 1-0


[Site "https://www.chess.com"]

[Event "Titled Tuesday Blitz November 14 Early 2023"]
[White "Ashraf, Artin"]
[Black "Javakhadze, Zurab"]
[WhiteFideId "22514805"]
[BlackFideId "13603647"]
[WhiteElo "2928"]
[BlackElo "2767"]
[Result "0-1"]
[Round "8"]
[TimeControl "180+1"]
[Date "2023.11.14"]
[WhiteClock "0:00:04"]
[BlackClock "0:00:04"]
[Board "24"]

1. c4 {[%clk 0:03:00]}  e6 {[%clk 0:02:59]} 2. Nf3 {[%clk 0:02:57]}  d5 {[%clk 0:03:00]} 3. d4 {[%clk 0:02:57]}  Nf6 {[%clk 0:03:00]} 4. Nc3 {[%clk 0:02:57]}  Nbd7 {[%clk 0:02:59]} 5. Bf4 {[%clk 0:02:54]}  dxc4 {[%clk 0:02:46]} 6. e3 {[%clk 0:02:53]}  Nd5 {[%clk 0:02:46]} 7. Bg5 {[%clk 0:02:34]}  f6 {[%clk 0:02:35]} 8. Bh4 {[%clk 0:02:34]}  Bb4 {[%clk 0:02:29]} 9. Qc2 {[%clk 0:02:25]}  b5 {[%clk 0:02:13]} 10. a4 {[%clk 0:02:22]}  c6 {[%clk 0:02:09]} 11. axb5 {[%clk 0:02:11]}  cxb5 {[%clk 0:02:09]} 12. Be2 {[%clk 0:02:11]}  Bb7 {[%clk 0:01:37]} 13. O-O {[%clk 0:02:10]}  a6 {[%clk 0:01:37]} 14. Bg3 {[%clk 0:01:57]}  O-O {[%clk 0:01:33]} 15. e4 {[%clk 0:01:56]}  N5b6 {[%clk 0:01:21]} 16. Rfd1 {[%clk 0:01:52]}  Qe7 {[%clk 0:01:14]} 17. e5 {[%clk 0:01:39]}  f5 {[%clk 0:01:07]} 18. Bh4 {[%clk 0:01:35]}  Qf7 {[%clk 0:00:54]} 19. Ng5 {[%clk 0:01:25]}  Qg6 {[%clk 0:00:50]} 20. Bf3 {[%clk 0:01:23]}  Bxf3 {[%clk 0:00:45]} 21. Nxf3 {[%clk 0:01:24]}  Bxc3 {[%clk 0:00:38]} 22. Qxc3 {[%clk 0:01:22]}  Nd5 {[%clk 0:00:39]} 23. Qa5 {[%clk 0:01:21]}  h6 {[%clk 0:00:34]} 24. h3 {[%clk 0:01:14]}  f4 {[%clk 0:00:30]} 25. Qa3 {[%clk 0:00:38]}  Qf7 {[%clk 0:00:28]} 26. Qd6 {[%clk 0:00:38]}  N7b6 {[%clk 0:00:18]} 27. Ra5 {[%clk 0:00:27]}  Ra7 {[%clk 0:00:13]} 28. Rda1 {[%clk 0:00:25]}  Rd7 {[%clk 0:00:14]} 29. Qc6 {[%clk 0:00:20]}  Rc8 {[%clk 0:00:12]} 30. Qxc8+ {[%clk 0:00:17]}  Nxc8 {[%clk 0:00:12]} 31. Rxa6 {[%clk 0:00:18]}  g5 {[%clk 0:00:07]} 32. Bxg5 {[%clk 0:00:18]}  hxg5 {[%clk 0:00:07]} 33. Nxg5 {[%clk 0:00:19]}  Qe7 {[%clk 0:00:04]} 34. Nxe6 {[%clk 0:00:19]}  Ra7 {[%clk 0:00:04]} 35. Nc5 {[%clk 0:00:17]}  Rxa6 {[%clk 0:00:04]} 36. Rxa6 {[%clk 0:00:18]}  f3 {[%clk 0:00:04]} 37. g3 {[%clk 0:00:14]}  Ncb6 {[%clk 0:00:04]} 38. Ra5 {[%clk 0:00:14]}  b4 {[%clk 0:00:04]} 39. Ne4 {[%clk 0:00:14]}  c3 {[%clk 0:00:04]} 40. bxc3 {[%clk 0:00:15]}  bxc3 {[%clk 0:00:05]} 41. Rc5 {[%clk 0:00:16]}  Qh7 {[%clk 0:00:05]} 42. Rc8+ {[%clk 0:00:04]}  Nxc8 {[%clk 0:00:04]} 0-1


[Site "https://www.chess.com"]

[Event "Titled Tuesday Blitz November 14 Early 2023"]
[White "Sattarov, Bobir"]
[Black "Rustemov, Alexander"]
[WhiteFideId "14203081"]
[BlackFideId "4119002"]
[WhiteElo "2751"]
[BlackElo "2904"]
[Result "1/2-1/2"]
[Round "8"]
[TimeControl "180+1"]
[Date "2023.11.14"]
[WhiteClock "0:00:03"]
[BlackClock "0:00:04"]
[Board "26"]

1. d4 {[%clk 0:02:56]}  d5 {[%clk 0:02:59]} 2. Nf3 {[%clk 0:02:56]}  c6 {[%clk 0:02:57]} 3. c3 {[%clk 0:02:56]}  Nf6 {[%clk 0:02:56]} 4. Bf4 {[%clk 0:02:55]}  Bf5 {[%clk 0:02:52]} 5. e3 {[%clk 0:02:55]}  e6 {[%clk 0:02:51]} 6. Nbd2 {[%clk 0:02:53]}  Bd6 {[%clk 0:02:49]} 7. Ne5 {[%clk 0:02:42]}  Qc7 {[%clk 0:02:41]} 8. Qf3 {[%clk 0:02:37]}  Nbd7 {[%clk 0:02:40]} 9. Nxd7 {[%clk 0:02:10]}  Nxd7 {[%clk 0:02:39]} 10. Bxd6 {[%clk 0:01:50]}  Qxd6 {[%clk 0:02:40]} 11. e4 {[%clk 0:01:50]}  dxe4 {[%clk 0:02:32]} 12. Nxe4 {[%clk 0:01:51]}  Bxe4 {[%clk 0:02:30]} 13. Qxe4 {[%clk 0:01:52]}  Nf6 {[%clk 0:02:20]} 14. Qe5 {[%clk 0:01:48]}  Qxe5+ {[%clk 0:02:12]} 15. dxe5 {[%clk 0:01:49]}  Ng4 {[%clk 0:02:12]} 16. f4 {[%clk 0:01:46]}  O-O-O {[%clk 0:02:09]} 17. Be2 {[%clk 0:01:43]}  Ne3 {[%clk 0:02:01]} 18. Kf2 {[%clk 0:01:43]}  Nd5 {[%clk 0:01:56]} 19. g3 {[%clk 0:01:41]}  Nb6 {[%clk 0:01:50]} 20. Rad1 {[%clk 0:01:35]}  Na4 {[%clk 0:01:49]} 21. Ke3 {[%clk 0:00:49]}  Nxb2 {[%clk 0:01:45]} 22. Rb1 {[%clk 0:00:49]}  Na4 {[%clk 0:01:44]} 23. Rhc1 {[%clk 0:00:42]}  Rd7 {[%clk 0:01:42]} 24. Rb4 {[%clk 0:00:42]}  Nc5 {[%clk 0:01:41]} 25. Rd4 {[%clk 0:00:42]}  Rhd8 {[%clk 0:01:40]} 26. h4 {[%clk 0:00:38]}  h6 {[%clk 0:01:32]} 27. g4 {[%clk 0:00:37]}  Kc7 {[%clk 0:01:27]} 28. Rg1 {[%clk 0:00:27]}  Rh8 {[%clk 0:01:23]} 29. h5 {[%clk 0:00:25]}  b6 {[%clk 0:01:19]} 30. g5 {[%clk 0:00:24]}  hxg5 {[%clk 0:01:05]} 31. Rxg5 {[%clk 0:00:25]}  Rh7 {[%clk 0:00:59]} 32. Bd1 {[%clk 0:00:24]}  f6 {[%clk 0:00:50]} 33. Rg6 {[%clk 0:00:23]}  fxe5 {[%clk 0:00:46]} 34. fxe5 {[%clk 0:00:24]}  Rf7 {[%clk 0:00:43]} 35. Bg4 {[%clk 0:00:18]}  Rf1 {[%clk 0:00:32]} 36. Bxe6 {[%clk 0:00:17]}  Re1+ {[%clk 0:00:31]} 37. Kf4 {[%clk 0:00:16]}  Rf1+ {[%clk 0:00:17]} 38. Ke3 {[%clk 0:00:15]}  Re1+ {[%clk 0:00:13]} 39. Kf4 {[%clk 0:00:16]}  b5 {[%clk 0:00:14]} 40. Bg4 {[%clk 0:00:15]}  Rf1+ {[%clk 0:00:13]} 41. Kg5 {[%clk 0:00:13]}  Re1 {[%clk 0:00:13]} 42. Bf3 {[%clk 0:00:13]}  Rxe5+ {[%clk 0:00:12]} 43. Kf4 {[%clk 0:00:13]}  Re6 {[%clk 0:00:13]} 44. Kf5 {[%clk 0:00:09]}  Rxg6 {[%clk 0:00:07]} 45. Kxg6 {[%clk 0:00:10]}  Rh8 {[%clk 0:00:04]} 46. Kxg7 {[%clk 0:00:11]}  Re8 {[%clk 0:00:04]} 47. Bg4 {[%clk 0:00:10]}  Re1 {[%clk 0:00:02]} 48. h6 {[%clk 0:00:10]}  Rh1 {[%clk 0:00:02]} 49. h7 {[%clk 0:00:10]}  a5 {[%clk 0:00:03]} 50. h8=Q {[%clk 0:00:10]}  Rxh8 {[%clk 0:00:03]} 51. Kxh8 {[%clk 0:00:11]}  Na4 {[%clk 0:00:03]} 52. c4 {[%clk 0:00:11]}  b4 {[%clk 0:00:03]} 53. Bd1 {[%clk 0:00:10]}  Nc3 {[%clk 0:00:02]} 54. a3 {[%clk 0:00:07]}  bxa3 {[%clk 0:00:02]} 55. Bb3 {[%clk 0:00:05]}  a2 {[%clk 0:00:03]} 56. Bxa2 {[%clk 0:00:05]}  Nxa2 {[%clk 0:00:03]} 57. c5 {[%clk 0:00:05]}  Nb4 {[%clk 0:00:02]} 58. Kg7 {[%clk 0:00:04]}  Na6 {[%clk 0:00:02]} 59. Rc4 {[%clk 0:00:04]}  a4 {[%clk 0:00:03]} 60. Rxa4 {[%clk 0:00:04]}  Nxc5 {[%clk 0:00:03]} 61. Rc4 {[%clk 0:00:04]}  Kd6 {[%clk 0:00:03]} 62. Kf6 {[%clk 0:00:04]}  Kd5 {[%clk 0:00:03]} 63. Rc1 {[%clk 0:00:04]}  Ne4+ {[%clk 0:00:04]} 64. Kf5 {[%clk 0:00:05]}  Nd6+ {[%clk 0:00:02]} 65. Kf4 {[%clk 0:00:04]}  c5 {[%clk 0:00:03]} 66. Rd1+ {[%clk 0:00:05]}  Kc6 {[%clk 0:00:03]} 67. Ke5 {[%clk 0:00:06]}  Nc4+ {[%clk 0:00:03]} 68. Ke6 {[%clk 0:00:06]}  Nb6 {[%clk 0:00:03]} 69. Rc1 {[%clk 0:00:06]}  Kb5 {[%clk 0:00:04]} 70. Rb1+ {[%clk 0:00:06]}  Kc6 {[%clk 0:00:03]} 71. Rb2 {[%clk 0:00:06]}  Nc4 {[%clk 0:00:03]} 72. Ra2 {[%clk 0:00:07]}  Nb6 {[%clk 0:00:04]} 73. Ra5 {[%clk 0:00:07]}  Nc4 {[%clk 0:00:04]} 74. Ra4 {[%clk 0:00:06]}  Nb6 {[%clk 0:00:04]} 75. Ra1 {[%clk 0:00:05]}  Nc4 {[%clk 0:00:04]} 76. Rh1 {[%clk 0:00:05]}  Nb6 {[%clk 0:00:04]} 77. Rh6 {[%clk 0:00:06]}  c4 {[%clk 0:00:05]} 78. Ke5+ {[%clk 0:00:06]}  Kc5 {[%clk 0:00:05]} 79. Rh8 {[%clk 0:00:06]}  c3 {[%clk 0:00:05]} 80. Ke4 {[%clk 0:00:06]}  Kc4 {[%clk 0:00:04]} 81. Rh1 {[%clk 0:00:04]}  Na4 {[%clk 0:00:04]} 82. Ke3 {[%clk 0:00:04]}  Nc5 {[%clk 0:00:04]} 83. Rb1 {[%clk 0:00:02]}  Nb3 {[%clk 0:00:04]} 84. Rd1 {[%clk 0:00:01]}  c2 {[%clk 0:00:04]} 85. Re1 {[%clk 0:00:02]}  Kc3 {[%clk 0:00:05]} 86. Ke2 {[%clk 0:00:02]}  Nd4+ {[%clk 0:00:04]} 87. Ke3 {[%clk 0:00:02]}  Nb3 {[%clk 0:00:04]} 88. Rf1 {[%clk 0:00:02]}  Nc5 {[%clk 0:00:04]} 89. Rc1 {[%clk 0:00:02]}  Nd3 {[%clk 0:00:03]} 90. Rxc2+ {[%clk 0:00:03]}  Kxc2 {[%clk 0:00:04]} 1/2-1/2


[Site "https://www.chess.com"]

[Event "Titled Tuesday Blitz November 14 Early 2023"]
[White "Hua, Lefong"]
[Black "Madaminov, Mukhiddin"]
[WhiteFideId "2602253"]
[BlackFideId "14210703"]
[WhiteElo "2708"]
[BlackElo "2880"]
[Result "1-0"]
[Round "8"]
[TimeControl "180+1"]
[Date "2023.11.14"]
[WhiteClock "0:00:17"]
[BlackClock "0:00:10"]
[Board "30"]

1. d4 {[%clk 0:03:00]}  e6 {[%clk 0:03:00]} 2. c4 {[%clk 0:02:59]}  b6 {[%clk 0:03:00]} 3. Nc3 {[%clk 0:02:59]}  Bb7 {[%clk 0:02:59]} 4. e4 {[%clk 0:02:58]}  Bb4 {[%clk 0:02:59]} 5. f3 {[%clk 0:02:58]}  f5 {[%clk 0:02:58]} 6. e5 {[%clk 0:02:56]}  Nc6 {[%clk 0:02:42]} 7. Be3 {[%clk 0:02:51]}  Nh6 {[%clk 0:02:34]} 8. Nh3 {[%clk 0:02:42]}  O-O {[%clk 0:02:32]} 9. a3 {[%clk 0:02:38]}  Bxc3+ {[%clk 0:02:32]} 10. bxc3 {[%clk 0:02:38]}  Nf7 {[%clk 0:02:14]} 11. Qd2 {[%clk 0:02:25]}  Na5 {[%clk 0:02:12]} 12. Rb1 {[%clk 0:02:21]}  Ba6 {[%clk 0:02:12]} 13. c5 {[%clk 0:02:16]}  Bxf1 {[%clk 0:02:10]} 14. Kxf1 {[%clk 0:02:15]}  d6 {[%clk 0:02:06]} 15. cxd6 {[%clk 0:02:08]}  cxd6 {[%clk 0:02:06]} 16. exd6 {[%clk 0:02:03]}  Nxd6 {[%clk 0:02:04]} 17. Nf4 {[%clk 0:02:00]}  Re8 {[%clk 0:02:00]} 18. Qa2 {[%clk 0:01:52]}  Ndc4 {[%clk 0:01:57]} 19. Re1 {[%clk 0:01:51]}  e5 {[%clk 0:01:55]} 20. dxe5 {[%clk 0:01:42]}  Rxe5 {[%clk 0:01:55]} 21. Bd4 {[%clk 0:01:38]}  Rxe1+ {[%clk 0:01:51]} 22. Kxe1 {[%clk 0:01:39]}  Qd6 {[%clk 0:01:38]} 23. Nd3 {[%clk 0:01:30]}  Qxa3 {[%clk 0:01:26]} 24. Qxa3 {[%clk 0:01:29]}  Nxa3 {[%clk 0:01:26]} 25. Kf2 {[%clk 0:01:25]}  Nb5 {[%clk 0:01:26]} 26. Re1 {[%clk 0:01:19]}  Rd8 {[%clk 0:01:25]} 27. Re7 {[%clk 0:01:17]}  Nc6 {[%clk 0:01:21]} 28. Rxg7+ {[%clk 0:01:14]}  Kf8 {[%clk 0:01:20]} 29. Rxh7 {[%clk 0:01:13]}  Nbxd4 {[%clk 0:01:03]} 30. Rh8+ {[%clk 0:01:07]}  Ke7 {[%clk 0:01:01]} 31. Rxd8 {[%clk 0:01:08]}  Kxd8 {[%clk 0:01:01]} 32. cxd4 {[%clk 0:01:08]}  Nxd4 {[%clk 0:01:02]} 33. Ke3 {[%clk 0:01:00]}  Nb3 {[%clk 0:01:02]} 34. h4 {[%clk 0:00:58]}  a5 {[%clk 0:01:01]} 35. h5 {[%clk 0:00:57]}  Ke7 {[%clk 0:01:02]} 36. g4 {[%clk 0:00:55]}  fxg4 {[%clk 0:01:01]} 37. fxg4 {[%clk 0:00:56]}  a4 {[%clk 0:00:59]} 38. Nb4 {[%clk 0:00:44]}  b5 {[%clk 0:00:57]} 39. h6 {[%clk 0:00:42]}  Kf7 {[%clk 0:00:57]} 40. Kd3 {[%clk 0:00:37]}  Kg6 {[%clk 0:00:55]} 41. g5 {[%clk 0:00:36]}  Nc5+ {[%clk 0:00:46]} 42. Kd4 {[%clk 0:00:33]}  Nb3+ {[%clk 0:00:39]} 43. Kc3 {[%clk 0:00:26]}  Na5 {[%clk 0:00:36]} 44. Kd4 {[%clk 0:00:16]}  Nb3+ {[%clk 0:00:36]} 45. Kc3 {[%clk 0:00:16]}  Kh7 {[%clk 0:00:37]} 46. Na2 {[%clk 0:00:15]}  Kg6 {[%clk 0:00:12]} 47. Kb4 {[%clk 0:00:15]}  Nd4 {[%clk 0:00:12]} 48. Kc5 {[%clk 0:00:14]}  b4 {[%clk 0:00:08]} 49. Kxd4 {[%clk 0:00:10]}  b3 {[%clk 0:00:09]} 50. Kc3 {[%clk 0:00:10]}  bxa2 {[%clk 0:00:07]} 51. Kb2 {[%clk 0:00:10]}  Kh7 {[%clk 0:00:06]} 52. Kxa2 {[%clk 0:00:10]}  Kg6 {[%clk 0:00:06]} 53. Ka3 {[%clk 0:00:11]}  Kh7 {[%clk 0:00:07]} 54. Kxa4 {[%clk 0:00:11]}  Kg6 {[%clk 0:00:07]} 55. Kb5 {[%clk 0:00:12]}  Kh7 {[%clk 0:00:07]} 56. Kc5 {[%clk 0:00:12]}  Kg6 {[%clk 0:00:08]} 57. Kd5 {[%clk 0:00:13]}  Kh7 {[%clk 0:00:09]} 58. Ke5 {[%clk 0:00:14]}  Kg6 {[%clk 0:00:09]} 59. Kf4 {[%clk 0:00:14]}  Kh7 {[%clk 0:00:10]} 60. Kf5 {[%clk 0:00:15]}  Kg8 {[%clk 0:00:06]} 61. g6 {[%clk 0:00:15]}  Kh8 {[%clk 0:00:07]} 62. Kf6 {[%clk 0:00:15]}  Kg8 {[%clk 0:00:07]} 63. g7 {[%clk 0:00:15]}  Kh7 {[%clk 0:00:08]} 64. Kf7 {[%clk 0:00:16]}  Kxh6 {[%clk 0:00:08]} 65. g8=Q {[%clk 0:00:16]}  Kh5 {[%clk 0:00:09]} 66. Qg3 {[%clk 0:00:16]}  Kh6 {[%clk 0:00:10]} 67. Qg6# {[%clk 0:00:17]} 1-0


[Site "https://www.chess.com"]